bitfinex/quotes_SOLUSD_20241107
["timestamp","ask_amount","ask_price","bid_price","bid_amount"]
[1731000013973,15.94585541,193.95,193.86,20.0]
[1731000014288,15.94585541,193.95,193.89,15.94585541]
[1731000014470,15.94585541,193.96,193.89,15.94585541]
[1731000015056,15.94585541,193.95,193.89,15.94585541]
[1731000015479,6.4851,193.97,193.87,43.776884]
[1731000015480,22.43095541,193.97,193.9,15.94585541]
[1731000015687,22.43095541,193.97,193.87,43.776884]
[1731000015688,15.94585541,193.94,193.87,43.776884]
[1731000015986,15.94585541,193.93,193.87,20.0]
[1731000016188,15.94585541,193.91,193.86,20.0]
[1731000016367,15.94585541,193.94,193.86,20.0]
[1731000016563,15.94585541,193.94,193.88,15.94585541]
[1731000016886,15.94585541,193.95,193.89,15.94585541]
[1731000017076,15.94585541,193.95,193.88,15.94585541]
[1731000017555,15.94585541,193.94,193.88,15.94585541]
[1731000017758,15.94585541,193.93,193.87,15.94585541]
[1731000017962,15.94585541,193.92,193.86,35.94585541]
[1731000018172,15.94585541,193.92,193.86,20.0]
[1731000018567,15.94585541,193.9,193.86,20.0]
[1731000019359,15.94585541,193.89,193.86,20.0]
[1731000019788,15.94585541,193.88,193.86,20.0]
[1731000020088,15.94585541,193.89,193.86,20.0]
[1731000020677,15.5511,193.92,193.86,20.0]
[1731000020875,15.94585541,193.91,193.86,20.0]
[1731000021194,15.94585541,193.9,193.86,20.0]
[1731000022093,15.94585541,193.91,193.86,20.0]
[1731000022477,15.94585541,193.9,193.86,20.0]
[1731000022783,15.94585541,193.91,193.86,20.0]
[1731000022988,31.49695541,193.92,193.86,35.94585541]
[1731000023664,15.94585541,193.91,193.86,20.0]
[1731000024286,15.94585541,193.9,193.86,20.0]
[1731000024491,15.94585541,193.88,193.86,20.0]
[1731000024802,15.94585541,193.87,193.86,20.0]
[1731000024973,15.94585541,193.88,193.86,20.0]
[1731000025974,15.94585541,193.87,193.86,20.0]
[1731000026181,15.94585541,193.89,193.86,20.0]
[1731000027491,15.94585541,193.9,193.86,20.0]
[1731000027671,15.94585541,193.89,193.86,20.0]
[1731000028692,15.94585541,193.9,193.86,20.0]
[1731000029202,15.5511,193.92,193.86,20.0]
[1731000029203,15.94585541,193.89,193.86,20.0]
[1731000029493,15.94585541,193.88,193.86,20.0]
[1731000029801,15.94585541,193.91,193.86,20.0]
[1731000030004,15.5511,193.92,193.86,35.94585541]
[1731000030177,15.94585541,193.95,193.89,15.94585541]
[1731000030375,15.94585541,193.96,193.89,15.94585541]
[1731000030570,38.99065541,193.97,193.91,15.94585541]
[1731000030774,15.94585541,194.0,193.93,15.94585541]
[1731000031094,15.94585541,194.0,193.87,0.12549]
[1731000031095,15.94585541,193.97,193.91,15.94585541]
[1731000032073,15.94585541,193.98,193.92,15.94585541]
[1731000032293,15.94585541,193.99,193.92,15.94585541]
[1731000032480,15.94585541,193.98,193.92,15.94585541]
[1731000033684,15.94585541,193.99,193.93,15.94585541]
[1731000033876,15.94585541,194.0,193.94,15.94585541]
[1731000034076,15.94585541,194.03,193.97,15.94585541]
[1731000034581,15.94585541,194.04,193.98,15.94585541]
[1731000034897,15.94585541,194.02,193.96,15.94585541]
[1731000035094,15.94585541,194.02,193.95,35.94585541]
[1731000035299,15.94585541,194.01,193.94,15.94585541]
[1731000035508,15.94585541,194.0,193.94,15.94585541]
[1731000035675,15.94585541,193.98,193.93,20.0]
[1731000035998,15.94585541,193.97,193.91,15.94585541]
[1731000038481,7.52763449,194.01,193.93,15.94585541]
[1731000038796,7.52763449,194.01,193.87,0.12549]
[1731000038797,15.94585541,194.0,193.94,15.94585541]
[1731000038996,7.52763449,194.01,193.93,15.94585541]
[1731000038997,15.94585541,193.99,193.93,15.94585541]
[1731000040196,15.94585541,193.97,193.91,15.94585541]
[1731000040806,15.94585541,193.97,193.92,15.94585541]
[1731000040977,15.94585541,193.98,193.92,15.94585541]
[1731000041590,6.5338,193.99,193.9,15.94585541]
[1731000041591,15.94585541,193.96,193.9,15.94585541]
[1731000042211,15.94585541,193.95,193.89,15.94585541]
[1731000042987,22.6608,193.99,193.86,20.0]
[1731000042988,15.94585541,193.92,193.86,20.0]
[1731000043197,15.94585541,193.92,193.86,35.94585541]
[1731000043508,15.94585541,193.93,193.87,15.94585541]
[1731000043708,15.94585541,193.92,193.86,35.94585541]
[1731000044197,15.94585541,193.91,193.86,20.0]
[1731000044612,15.94585541,193.9,193.86,20.0]
[1731000046403,15.94585541,193.89,193.86,20.0]
[1731000046617,15.94585541,193.9,193.86,20.0]
[1731000046984,15.94585541,193.89,193.86,20.0]
[1731000047207,21.4932,193.91,193.86,20.0]
[1731000047509,6.2061,193.91,193.87,15.94585541]
[1731000047679,15.94585541,193.92,193.86,35.94585541]
[1731000047883,15.94585541,193.91,193.86,20.0]
[1731000048608,15.94585541,193.92,193.86,35.94585541]
[1731000049103,15.94585541,193.91,193.86,20.0]
[1731000049482,15.94585541,193.93,193.87,15.94585541]
[1731000049687,15.94585541,193.92,193.86,35.94585541]
[1731000050602,15.94585541,193.91,193.86,20.0]
[1731000050894,15.94585541,193.89,193.86,20.0]
[1731000051592,15.94585541,193.9,193.86,20.0]
[1731000051983,15.94585541,193.89,193.86,20.0]
[1731000052409,15.94585541,193.9,193.86,20.0]
[1731000053900,15.94585541,193.91,193.86,20.0]
[1731000055407,15.94585541,193.92,193.86,35.94585541]
[1731000055613,15.94585541,193.9,193.86,20.0]
[1731000055816,15.94585541,193.89,193.86,20.0]
[1731000056014,15.94585541,193.9,193.86,20.0]
[1731000057315,15.94585541,193.91,193.86,20.0]
[1731000059223,15.94585541,193.9,193.86,20.0]
[1731000059404,15.94585541,193.89,193.86,20.0]
[1731000059801,0.22549,193.94,193.86,20.0]
[1731000059802,15.94585541,193.9,193.86,20.0]
[1731000060210,15.94585541,193.91,193.86,20.0]
[1731000060417,15.94585541,193.93,193.87,15.94585541]
[1731000060718,15.94585541,193.93,193.86,20.0]
[1731000060719,15.94585541,193.91,193.86,35.94585541]
[1731000060920,15.94585541,193.92,193.86,35.94585541]
[1731000061131,15.94585541,193.93,193.86,20.0]
[1731000061413,15.94585541,193.92,193.86,35.94585541]
[1731000061819,0.12549,193.94,193.87,15.94585541]
[1731000061820,15.94585541,193.93,193.87,15.94585541]
[1731000062004,15.94585541,193.94,193.89,15.94585541]
[1731000062319,22.04225541,193.95,193.89,15.94585541]
[1731000063429,15.94585541,193.95,193.89,15.94585541]
[1731000063607,15.94585541,193.96,193.9,15.94585541]
[1731000063816,15.94585541,193.97,193.91,15.94585541]
[1731000064140,15.94585541,194.01,193.95,15.94585541]
[1731000064296,15.94585541,194.02,193.96,15.94585541]
[1731000064503,6.1442,194.03,193.98,15.94585541]
[1731000065407,15.94585541,194.06,194.0,15.94585541]
[1731000065601,15.94585541,194.07,194.01,15.94585541]
[1731000065914,37.76545541,194.08,194.02,15.94585541]
[1731000066322,15.94585541,194.06,194.0,15.94585541]
[1731000066506,15.94585541,194.07,193.98,20.0]
[1731000066698,15.94585541,194.07,194.01,15.94585541]
[1731000066902,37.76545541,194.08,194.02,15.94585541]
[1731000067525,15.94585541,194.09,194.03,15.94585541]
[1731000067821,15.94585541,194.1,194.04,15.94585541]
[1731000068029,15.94585541,194.09,194.03,15.94585541]
[1731000068205,15.94585541,194.08,194.02,15.94585541]
[1731000068703,15.94585541,194.08,193.98,20.0]
[1731000068704,15.94585541,194.09,194.03,15.94585541]
[1731000069204,15.94585541,194.08,194.02,15.94585541]
[1731000069524,15.94585541,194.09,194.04,15.94585541]
[1731000070332,15.94585541,194.07,194.02,15.94585541]
[1731000070532,15.94585541,194.08,194.03,15.94585541]
[1731000070709,15.94585541,194.09,194.03,15.94585541]
[1731000071027,15.94585541,194.06,194.0,15.94585541]
[1731000071722,15.94585541,194.06,193.98,20.0]
[1731000071723,15.94585541,194.04,193.98,15.94585541]
[1731000072118,15.94585541,194.05,193.99,15.94585541]
[1731000073235,15.94585541,194.06,194.0,15.94585541]
[1731000073405,0.12549,194.11,194.0,15.94585541]
[1731000073406,15.94585541,194.05,194.0,15.94585541]
[1731000073613,15.94585541,194.06,194.0,15.94585541]
[1731000074515,15.94585541,194.05,193.99,15.94585541]
[1731000074835,15.94585541,194.04,193.98,15.94585541]
[1731000075127,15.94585541,194.05,193.99,15.94585541]
[1731000075428,15.94585541,194.0,193.94,20.0]
[1731000075620,15.94585541,194.0,193.94,15.94585541]
[1731000076023,15.94585541,194.01,193.95,15.94585541]
[1731000076234,15.94585541,194.01,193.92,15.3441]
[1731000076235,15.94585541,194.02,193.96,15.94585541]
[1731000076718,15.94585541,194.03,193.97,15.94585541]
[1731000077102,15.94585541,194.02,193.96,15.94585541]
[1731000077526,15.94585541,194.0,193.94,15.94585541]
[1731000077729,15.94585541,194.0,193.93,39.72273941]
[1731000077924,15.94585541,194.0,193.92,15.3441]
[1731000077925,15.94585541,194.0,193.94,15.94585541]
[1731000078129,15.94585541,194.02,193.95,15.94585541]
[1731000078315,15.94585541,194.01,193.95,15.94585541]
[1731000078708,15.94585541,194.0,193.94,20.0]
[1731000078905,15.94585541,193.99,193.94,20.0]
[1731000079128,15.94585541,193.98,193.94,20.0]
[1731000079327,15.94585541,193.98,193.92,15.94585541]
[1731000079721,15.94585541,193.96,193.9,15.94585541]
[1731000080034,15.94585541,193.94,193.88,32.56395541]
[1731000080233,15.94585541,193.95,193.89,15.94585541]
[1731000080813,15.94585541,193.96,193.9,15.94585541]
[1731000081115,15.94585541,193.95,193.89,15.94585541]
[1731000081305,0.12549,193.99,193.86,20.0]
[1731000081306,15.94585541,193.94,193.87,15.94585541]
[1731000081707,0.12549,193.99,193.87,15.94585541]
[1731000081708,15.94585541,193.93,193.87,15.94585541]
[1731000081910,15.94585541,193.92,193.86,35.94585541]
[1731000082213,15.94585541,193.92,193.86,20.0]
[1731000082429,15.94585541,193.92,193.86,35.94585541]
[1731000082747,15.94585541,193.9,193.86,20.0]
[1731000082919,15.94585541,193.88,193.86,20.0]
[1731000083719,15.94585541,193.89,193.86,20.0]
[1731000083922,15.94585541,193.9,193.86,20.0]
[1731000084121,15.94585541,193.88,193.86,20.0]
[1731000084523,15.94585541,193.89,193.86,20.0]
[1731000084823,15.94585541,193.88,193.86,20.0]
[1731000085932,15.94585541,193.87,193.86,20.0]
[1731000086239,16.07134541,193.87,193.86,20.0]
[1731000086534,22.27584541,193.87,193.86,20.0]
[1731000086935,46.05272941,193.87,193.86,20.0]
[1731000088522,22.27584541,193.87,193.86,20.0]
[1731000089160,22.15035541,193.87,193.77,0.5894446]
[1731000089344,15.94585541,193.82,193.77,0.5894446]
[1731000089543,15.94585541,193.83,193.77,16.53530001]
[1731000089844,15.94585541,193.82,193.77,0.5894446]
[1731000090045,15.94585541,193.81,193.77,0.5894446]
[1731000090232,15.94585541,193.82,193.77,0.5894446]
[1731000090431,15.94585541,193.81,193.77,0.5894446]
[1731000090617,15.94585541,193.82,193.77,0.5894446]
[1731000091021,15.94585541,193.83,193.77,16.53530001]
[1731000091221,15.94585541,193.82,193.77,0.5894446]
[1731000091450,15.94585541,193.81,193.77,0.5894446]
[1731000093435,0.12549,193.86,193.77,0.5894446]
[1731000093436,15.94585541,193.82,193.77,0.5894446]
[1731000094031,6.2045,193.87,193.8,15.94585541]
[1731000094237,31.99595541,193.88,193.82,15.94585541]
[1731000094436,15.94585541,193.88,193.82,15.94585541]
[1731000094932,15.94585541,193.92,193.87,15.94585541]
[1731000095144,15.94585541,193.95,193.89,15.94585541]
[1731000095530,15.94585541,193.94,193.88,15.94585541]
[1731000095726,6.5634,193.96,193.89,15.94585541]
[1731000095727,15.94585541,193.95,193.89,15.94585541]
[1731000095939,15.94585541,193.95,193.82,15.3262]
[1731000095940,15.94585541,193.97,193.91,15.94585541]
[1731000096136,22.14795541,194.01,193.95,15.94585541]
[1731000096340,16.14585541,194.1,193.93,20.0]
[1731000096341,15.94585541,194.02,193.96,15.94585541]
[1731000096537,15.94585541,194.01,193.95,15.94585541]
[1731000096939,15.94585541,194.01,193.94,15.94585541]
[1731000097144,15.94585541,194.0,193.94,15.94585541]
[1731000097640,15.94585541,194.02,193.96,15.94585541]
[1731000098540,15.94585541,194.0,193.94,15.94585541]
[1731000099257,15.94585541,193.99,193.93,15.94585541]
[1731000099450,15.94585541,194.0,193.94,15.94585541]
[1731000100751,15.94585541,194.01,193.95,15.94585541]
[1731000101428,0.12549,194.05,193.93,15.94585541]
[1731000101429,15.94585541,194.0,193.93,15.94585541]
[1731000101629,15.94585541,193.99,193.93,15.94585541]
[1731000102137,0.12549,194.05,193.92,15.94585541]
[1731000102138,15.94585541,193.98,193.92,15.94585541]
[1731000102440,15.94585541,193.99,193.93,15.94585541]
[1731000102642,15.94585541,194.0,193.94,15.94585541]
[1731000103243,15.94585541,194.02,193.95,15.94585541]
[1731000103443,6.2021,194.06,193.91,20.0]
[1731000103444,15.94585541,194.04,193.98,15.94585541]
[1731000103846,15.94585541,194.03,193.97,15.94585541]
[1731000104051,15.94585541,194.0,193.91,20.0]
[1731000104250,15.94585541,193.99,193.94,20.0]
[1731000104554,15.94585541,193.99,193.93,15.94585541]
[1731000105052,0.12549,194.05,193.91,20.0]
[1731000105053,15.94585541,193.96,193.91,20.0]
[1731000105256,15.94585541,194.0,193.94,15.94585541]
[1731000105555,15.94585541,194.0,193.91,20.0]
[1731000105556,15.94585541,194.03,193.97,15.94585541]
[1731000105731,15.94585541,194.03,193.94,23.776884]
[1731000105928,15.94585541,194.03,193.95,20.0]
[1731000106150,15.94585541,194.03,193.96,15.94585541]
[1731000106637,15.94585541,194.03,193.97,15.94585541]
[1731000107262,15.94585541,194.02,193.96,15.94585541]
[1731000107439,15.94585541,194.03,193.97,15.94585541]
[1731000107635,15.94585541,194.02,193.96,15.94585541]
[1731000107941,15.94585541,194.01,193.95,35.94585541]
[1731000108253,15.94585541,194.0,193.95,20.0]
[1731000108450,15.94585541,194.02,193.96,15.94585541]
[1731000108668,15.94585541,194.03,193.97,15.94585541]
[1731000109247,15.94585541,194.02,193.96,15.94585541]
[1731000109639,15.94585541,194.02,193.95,35.94585541]
[1731000109856,15.94585541,194.01,193.95,35.94585541]
[1731000110152,15.94585541,194.0,193.95,20.0]
[1731000110355,15.94585541,194.0,193.94,15.94585541]
[1731000110654,15.94585541,193.99,193.93,35.94585541]
[1731000111336,15.94585541,193.98,193.92,15.94585541]
[1731000111857,15.94585541,194.0,193.94,15.94585541]
[1731000112636,15.94585541,193.99,193.93,15.94585541]
[1731000112942,15.94585541,194.01,193.95,15.94585541]
[1731000113143,6.2021,194.06,193.97,15.94585541]
[1731000113466,15.94585541,194.05,193.99,15.94585541]
[1731000113755,15.94585541,194.06,194.01,15.94585541]
[1731000114871,15.94585541,194.07,194.01,15.94585541]
[1731000115030,15.94585541,194.07,193.96,16.1546]
[1731000115031,31.17065541,194.09,194.03,15.94585541]
[1731000115459,15.94585541,194.09,194.03,15.94585541]
[1731000115757,15.94585541,194.08,194.02,15.94585541]
[1731000116053,15.94585541,194.07,194.01,15.94585541]
[1731000116635,15.94585541,194.06,194.0,15.94585541]
[1731000116855,15.94585541,194.05,194.0,43.776884]
[1731000117065,6.0572,194.11,194.0,59.72273941]
[1731000117066,15.94585541,194.06,194.0,59.72273941]
[1731000117266,15.94585541,194.09,194.03,15.94585541]
[1731000117444,6.2598,194.16,194.08,15.94585541]
[1731000117646,15.94585541,194.14,194.08,15.94585541]
[1731000117946,6.2598,194.16,194.05,15.94585541]
[1731000118141,15.94585541,194.11,194.05,15.94585541]
[1731000118341,15.94585541,194.12,194.06,15.94585541]
[1731000118840,15.94585541,194.1,194.04,15.94585541]
[1731000119047,15.94585541,194.09,194.03,15.94585541]
[1731000119444,15.94585541,194.1,194.04,15.94585541]
[1731000120165,0.12549,194.15,194.05,15.94585541]
[1731000120166,15.94585541,194.11,194.05,15.94585541]
[1731000120343,15.94585541,194.1,194.04,15.94585541]
[1731000121764,0.12549,194.15,193.98,6.491]
[1731000121765,15.94585541,194.08,194.01,15.94585541]
[1731000121965,15.94585541,194.05,193.99,15.94585541]
[1731000122165,15.94585541,194.06,194.0,15.94585541]
[1731000122349,15.94585541,194.07,194.01,15.94585541]
[1731000122545,15.94585541,194.06,193.96,16.1546]
[1731000122862,15.94585541,194.06,193.96,15.94585541]
[1731000122863,15.94585541,194.02,193.96,15.94585541]
[1731000123445,15.94585541,194.03,193.97,15.94585541]
[1731000123646,15.94585541,194.01,193.95,15.94585541]
[1731000124184,15.94585541,194.02,193.93,20.0]
[1731000124372,15.94585541,194.03,193.97,15.94585541]
[1731000125162,15.94585541,194.02,193.96,15.94585541]
[1731000125374,15.94585541,194.01,193.95,15.94585541]
[1731000125544,15.94585541,194.0,193.94,15.94585541]
[1731000126066,15.94585541,194.03,193.97,15.94585541]
[1731000126277,6.5336,194.06,194.0,15.94585541]
[1731000126278,22.47945541,194.06,194.0,15.94585541]
[1731000126445,15.3987,194.09,194.03,15.94585541]
[1731000126644,22.59935541,194.11,194.04,15.94585541]
[1731000127353,15.94585541,194.13,194.06,15.94585541]
[1731000127657,15.94585541,194.13,194.0,15.94585541]
[1731000127658,15.94585541,194.11,194.05,15.94585541]
[1731000128048,15.94585541,194.12,194.05,15.94585541]
[1731000129568,15.94585541,194.11,194.05,15.94585541]
[1731000129867,15.94585541,194.1,194.03,15.94585541]
[1731000130057,15.94585541,194.09,194.03,15.94585541]
[1731000130844,15.94585541,194.08,194.02,15.94585541]
[1731000131045,15.94585541,194.08,194.01,15.94585541]
[1731000131464,15.94585541,194.06,194.0,15.94585541]
[1731000132557,15.94585541,194.05,193.99,15.94585541]
[1731000132759,15.94585541,194.04,193.98,15.94585541]
[1731000132959,15.94585541,194.05,193.98,15.94585541]
[1731000133363,15.94585541,194.03,193.97,15.94585541]
[1731000133664,0.12549,194.08,193.88,0.2]
[1731000133665,15.94585541,194.0,193.94,15.94585541]
[1731000134459,15.94585541,194.01,193.95,15.94585541]
[1731000135263,15.94585541,194.02,193.96,15.94585541]
[1731000135552,6.3317,194.05,194.0,15.94585541]
[1731000135757,16.0546,194.09,193.92,0.12549]
[1731000135758,32.00045541,194.09,194.03,15.94585541]
[1731000136077,6.3308,194.1,193.95,0.1]
[1731000136078,22.27665541,194.1,194.04,15.94585541]
[1731000136457,15.94585541,194.09,194.03,15.94585541]
[1731000137165,15.94585541,194.08,194.02,15.94585541]
[1731000137876,15.94585541,194.07,194.0,15.94585541]
[1731000139458,15.94585541,194.08,194.02,15.94585541]
[1731000139962,15.94585541,194.07,194.01,15.94585541]
[1731000140476,15.94585541,194.07,193.93,0.1]
[1731000140477,15.94585541,194.05,193.99,15.94585541]
[1731000140771,15.94585541,194.04,193.98,15.94585541]
[1731000140955,15.94585541,194.04,193.95,20.0]
[1731000141269,15.94585541,194.04,193.98,15.94585541]
[1731000141571,15.94585541,194.06,193.99,15.94585541]
[1731000141771,15.94585541,194.06,194.0,15.94585541]
[1731000142181,15.94585541,194.06,193.99,15.94585541]
[1731000142672,15.94585541,194.06,194.0,15.94585541]
[1731000142870,0.12549,194.09,193.95,20.0]
[1731000142871,15.94585541,194.07,194.01,15.94585541]
[1731000143451,15.94585541,194.06,194.0,15.94585541]
[1731000144364,15.94585541,194.06,193.99,15.94585541]
[1731000144956,15.94585541,194.05,193.99,15.94585541]
[1731000145572,15.94585541,194.04,193.95,20.0]
[1731000145768,15.94585541,194.04,193.97,15.94585541]
[1731000145978,15.94585541,194.03,193.97,15.94585541]
[1731000146269,15.94585541,194.02,193.96,15.94585541]
[1731000146777,15.94585541,194.02,193.9,15.94585541]
[1731000146778,31.54535541,194.05,193.99,15.94585541]
[1731000147352,15.94585541,194.05,193.99,15.94585541]
[1731000147568,15.94585541,194.09,194.03,15.94585541]
[1731000147759,21.9303,194.1,194.05,15.94585541]
[1731000147965,6.3308,194.1,194.07,15.94585541]
[1731000148256,6.3308,194.1,194.0,15.94585541]
[1731000148257,6.3308,194.1,194.06,15.94585541]
[1731000148452,6.3308,194.1,194.07,15.94585541]
[1731000148768,15.94585541,194.13,194.07,15.94585541]
[1731000149072,15.94585541,194.12,194.06,15.94585541]
[1731000149454,15.94585541,194.12,194.0,15.94585541]
[1731000149455,31.54535541,194.14,194.07,15.94585541]
[1731000149764,15.5995,194.14,194.09,15.94585541]
[1731000150281,15.94585541,194.13,194.07,15.94585541]
[1731000150661,16.07134541,194.13,194.06,15.94585541]
[1731000151376,15.94585541,194.11,194.05,15.94585541]
[1731000151556,15.94585541,194.11,193.97,21.5391]
[1731000151557,15.94585541,194.09,194.03,15.94585541]
[1731000151760,15.94585541,194.07,194.01,15.94585541]
[1731000151958,15.94585541,194.08,194.01,15.94585541]
[1731000152464,15.94585541,194.1,194.03,15.94585541]
[1731000152865,15.94585541,194.11,194.05,15.94585541]
[1731000153054,15.94585541,194.13,194.06,15.94585541]
[1731000153257,15.5995,194.14,194.09,15.94585541]
[1731000153564,15.94585541,194.12,194.06,15.94585541]
[1731000154282,15.94585541,194.13,194.07,15.94585541]
[1731000154488,31.54535541,194.14,194.08,15.94585541]
[1731000155283,15.5995,194.14,194.09,15.94585541]
[1731000156579,15.94585541,194.13,194.06,15.94585541]
[1731000157077,15.94585541,194.13,194.07,15.94585541]
[1731000157262,15.6116,194.19,194.12,15.94585541]
[1731000157582,15.94585541,194.24,194.18,15.94585541]
[1731000157892,15.6116,194.25,194.2,15.94585541]
[1731000158984,15.6116,194.25,194.12,6.5745]
[1731000158985,6.1168,194.26,194.22,15.94585541]
[1731000159205,15.94585541,194.29,194.22,15.94585541]
[1731000159478,15.6116,194.3,194.24,15.94585541]
[1731000159479,31.55745541,194.3,194.24,15.94585541]
[1731000159668,31.55745541,194.3,194.16,16.6775]
[1731000159669,15.6116,194.3,194.25,15.94585541]
[1731000160065,15.94585541,194.27,194.17,20.0]
[1731000160273,15.94585541,194.27,194.2,15.94585541]
[1731000160665,15.94585541,194.3,194.24,15.94585541]
[1731000160870,15.94585541,194.3,194.17,20.0]
[1731000160871,22.06265541,194.31,194.25,15.94585541]
[1731000161071,6.1168,194.31,194.21,20.0]
[1731000161462,15.6116,194.35,194.24,23.776884]
[1731000161980,15.94585541,194.33,194.27,15.94585541]
[1731000162779,15.94585541,194.3,194.2,23.776884]
[1731000162983,15.94585541,194.29,194.23,15.94585541]
[1731000163162,15.94585541,194.3,194.24,15.94585541]
[1731000163571,15.94585541,194.31,194.24,15.94585541]
[1731000163788,15.94585541,194.3,194.24,15.94585541]
[1731000164382,15.94585541,194.32,194.25,15.94585541]
[1731000164578,15.94585541,194.32,194.11,0.1]
[1731000164579,15.94585541,194.27,194.11,0.1]
[1731000164764,15.94585541,194.27,194.2,15.94585541]
[1731000165078,15.94585541,194.31,194.24,15.94585541]
[1731000165284,15.94585541,194.31,194.25,15.94585541]
[1731000165467,15.94585541,194.31,194.24,15.94585541]
[1731000167460,0.12549,194.31,194.27,15.94585541]
[1731000168268,0.12549,194.32,194.27,15.94585541]
[1731000168686,0.12549,194.32,194.26,15.94585541]
[1731000168870,15.94585541,194.33,194.27,15.94585541]
[1731000169065,15.6116,194.35,194.28,15.94585541]
[1731000169066,15.94585541,194.34,194.28,15.94585541]
[1731000169271,15.94585541,194.33,194.27,15.94585541]
[1731000169875,16.07134541,194.34,194.28,15.94585541]
[1731000170188,15.94585541,194.33,194.27,15.94585541]
[1731000170575,16.07134541,194.34,194.28,15.94585541]
[1731000170993,0.12549,194.34,194.28,15.94585541]
[1731000171185,16.07134541,194.34,194.28,15.94585541]
[1731000171687,16.07134541,194.34,194.22,20.0]
[1731000171688,0.12549,194.34,194.29,15.94585541]
[1731000171894,15.6116,194.35,194.29,15.94585541]
[1731000172095,15.6116,194.35,194.3,15.94585541]
[1731000172475,15.6116,194.35,194.29,15.94585541]
[1731000172800,31.55745541,194.35,194.29,15.94585541]
[1731000173195,15.94585541,194.34,194.22,20.0]
[1731000173378,15.94585541,194.33,194.27,15.94585541]
[1731000174504,16.07134541,194.34,194.28,15.94585541]
[1731000175399,15.94585541,194.33,194.27,15.94585541]
[1731000175696,15.94585541,194.31,194.25,15.94585541]
[1731000175899,15.94585541,194.33,194.27,15.94585541]
[1731000176069,0.12549,194.34,194.2,35.94585541]
[1731000176070,16.07134541,194.34,194.28,15.94585541]
[1731000176469,16.07134541,194.34,194.27,15.94585541]
[1731000176470,15.94585541,194.33,194.27,15.94585541]
[1731000176892,16.07134541,194.34,194.28,15.94585541]
[1731000177096,15.6116,194.35,194.3,15.94585541]
[1731000177272,6.4263,194.36,194.23,23.876884]
[1731000177596,6.4263,194.36,194.32,15.94585541]
[1731000178093,15.0035,194.4,194.23,0.1]
[1731000178094,15.94585541,194.35,194.23,50.529384]
[1731000178298,15.94585541,194.37,194.31,15.94585541]
[1731000178680,15.94585541,194.38,194.31,15.94585541]
[1731000179376,15.94585541,194.36,194.3,15.94585541]
[1731000179576,15.94585541,194.37,194.31,15.94585541]
[1731000179999,15.94585541,194.37,194.23,50.529384]
[1731000180193,15.94585541,194.37,194.31,15.94585541]
[1731000181093,15.94585541,194.38,194.31,15.94585541]
[1731000181290,15.94585541,194.37,194.31,15.94585541]
[1731000181595,15.94585541,194.35,194.29,15.94585541]
[1731000181894,15.94585541,194.38,194.23,50.429384]
[1731000182199,15.94585541,194.38,194.32,15.94585541]
[1731000182380,15.94585541,194.39,194.33,15.94585541]
[1731000182578,15.0035,194.4,194.32,15.94585541]
[1731000182579,15.94585541,194.38,194.32,15.94585541]
[1731000183408,15.94585541,194.38,194.31,15.94585541]
[1731000183903,15.94585541,194.37,194.31,15.94585541]
[1731000184293,15.94585541,194.35,194.29,15.94585541]
[1731000184480,0.12549,194.39,194.23,50.429384]
[1731000184680,15.94585541,194.35,194.29,15.94585541]
[1731000185003,15.94585541,194.36,194.3,15.94585541]
[1731000185192,15.94585541,194.35,194.29,15.94585541]
[1731000185500,15.94585541,194.36,194.3,15.94585541]
[1731000185703,15.94585541,194.35,194.29,15.94585541]
[1731000186204,15.94585541,194.35,194.28,15.94585541]
[1731000186393,15.94585541,194.33,194.27,15.94585541]
[1731000187305,15.94585541,194.33,194.23,43.776884]
[1731000187306,15.94585541,194.32,194.26,15.94585541]
[1731000187507,15.94585541,194.32,194.25,15.94585541]
[1731000187680,15.94585541,194.3,194.24,15.94585541]
[1731000187879,15.94585541,194.3,194.22,15.9545]
[1731000187880,16.07134541,194.31,194.25,15.94585541]
[1731000188085,15.94585541,194.32,194.26,15.94585541]
[1731000188285,22.04675541,194.33,194.27,15.94585541]
[1731000188599,22.04675541,194.33,194.26,15.94585541]
[1731000188600,15.94585541,194.32,194.26,15.94585541]
[1731000189599,15.94585541,194.31,194.25,15.94585541]
[1731000189992,15.94585541,194.31,194.24,15.94585541]
[1731000190381,15.94585541,194.3,194.24,15.94585541]
[1731000190580,15.94585541,194.28,194.22,15.94585541]
[1731000190809,16.1708,194.32,194.24,15.94585541]
[1731000190810,15.94585541,194.3,194.24,15.94585541]
[1731000191004,16.07134541,194.28,194.22,15.94585541]
[1731000191189,15.94585541,194.27,194.21,15.94585541]
[1731000191397,15.94585541,194.28,194.22,15.94585541]
[1731000192002,15.94585541,194.29,194.23,15.94585541]
[1731000192509,15.94585541,194.29,194.17,15.7552]